fUSD/lending_fUSD_20240521
["ID","MTS","AMOUNT","RATE_DAILY","PERIOD"]
[327700316,1716327036150,-500.0,0.0003041,6]
[327700317,1716327036160,-868.83,0.0003041,6]
[327700318,1716327036169,-500.0,0.0003041,6]
[327700319,1716327036180,-1094.02,0.0003041,6]
[327700320,1716327036188,-2054.93,0.0003041,6]
[327700321,1716327036198,-500.0,0.0003041,6]
[327700322,1716327036207,-2394.75,0.0003041,6]
[327700323,1716327036216,-500.0,0.0003041,6]
[327700324,1716327036226,-500.0,0.0003041,6]
[327700325,1716327036235,-751.07,0.0003041,6]
[327700326,1716327036249,-6659.7,0.0003041,6]
[327700327,1716327036258,-902.89,0.0003041,6]
[327700328,1716327036268,-500.0,0.0003041,6]
[327700329,1716327036278,-644.54,0.0003041,6]
[327700330,1716327036289,-500.0,0.0003041,6]
[327700331,1716327036299,-500.0,0.0003041,6]
[327700332,1716327036308,-500.0,0.0003041,6]
[327700333,1716327036318,-500.0,0.0003041,6]
[327700334,1716327036327,-525.72,0.0003041,6]
[327700335,1716327036337,-636.50610178,0.0003041,6]
[327700336,1716327036347,-500.0,0.0003041,6]
[327700337,1716327036357,-500.0,0.0003041,6]
[327700338,1716327036366,-500.0,0.0003041,6]
[327700339,1716327036376,-500.0,0.0003041,6]
[327700340,1716327036386,-6145.69,0.0003041,6]
[327700341,1716327036395,-500.0,0.0003041,6]
[327700342,1716327036404,-500.0,0.0003041,6]
[327700343,1716327036415,-1232.22,0.0003041,6]
[327700344,1716327036426,-649.99,0.0003041,6]
[327700345,1716327036436,-730.36,0.0003041,6]
[327700346,1716327036445,-1034.88,0.0003041,6]
[327700347,1716327036455,-735.26,0.0003041,6]
[327700348,1716327036464,-500.0,0.0003041,6]
[327700349,1716327036473,-500.0,0.0003041,6]
[327700350,1716327036483,-2817.76,0.0003041,6]
[327700351,1716327036492,-500.0,0.0003041,6]
[327700352,1716327036501,-500.0,0.0003041,6]
[327700353,1716327036511,-500.0,0.0003041,6]
[327700354,1716327036521,-902.3,0.0003041,6]
[327700355,1716327036530,-500.0,0.0003041,6]
[327700356,1716327036540,-500.0,0.0003041,6]
[327700357,1716327036549,-665.21,0.0003041,6]
[327700358,1716327036559,-500.0,0.0003041,6]
[327700359,1716327036569,-1010.2,0.0003041,6]
[327700360,1716327036579,-500.0,0.0003041,6]
[327700361,1716327036588,-500.0,0.0003041,6]
[327700362,1716327036598,-904.23,0.0003041,6]
[327700363,1716327036608,-500.0,0.0003041,6]
[327700364,1716327036617,-748.01,0.0003041,6]
[327700365,1716327036626,-500.0,0.0003041,6]
[327700366,1716327036636,-906.92,0.0003041,6]
[327700367,1716327036645,-1506.06,0.0003041,6]
[327700368,1716327036655,-500.0,0.0003041,6]
[327700369,1716327036665,-500.0,0.0003041,6]
[327700370,1716327036675,-545.03,0.0003041,6]
[327700371,1716327036685,-6304.36,0.0003041,6]
[327700372,1716327036695,-500.0,0.0003041,6]
[327700373,1716327036704,-876.42,0.0003041,6]
[327700374,1716327036714,-723.68,0.0003041,6]
[327700375,1716327036724,-1859.8,0.0003041,6]
[327700376,1716327036734,-967.85,0.0003041,6]
[327700377,1716327036744,-500.0,0.0003041,6]
[327700378,1716327036754,-500.0,0.0003041,6]
[327700379,1716327036763,-500.0,0.0003041,6]
[327700380,1716327036773,-500.22,0.0003041,6]
[327700381,1716327036783,-500.0,0.0003041,6]
[327700382,1716327036793,-500.0,0.0003041,6]
[327700383,1716327036803,-500.0,0.0003041,6]
[327700384,1716327036813,-500.0,0.0003041,6]
[327700385,1716327036822,-720.31,0.0003041,6]
[327700386,1716327036832,-500.0,0.0003041,6]
[327700387,1716327036842,-1081.0,0.0003041,6]
[327700388,1716327036852,-568.65436951,0.0003041,6]
[327700389,1716327036861,-500.0,0.0003041,6]
[327700390,1716327036870,-500.0,0.0003041,6]
[327700391,1716327036880,-1184.78,0.0003041,6]
[327700392,1716327036889,-500.0,0.0003041,6]
[327700393,1716327036898,-987.25,0.0003041,6]
[327700394,1716327036908,-2346.39,0.0003041,6]
[327700395,1716327036918,-844.48,0.0003041,6]
[327700396,1716327036928,-1374.44,0.0003041,6]
[327700397,1716327036938,-1280.14,0.0003041,6]
[327700398,1716327036947,-500.0,0.0003041,6]
[327700399,1716327036956,-2297.42,0.0003041,6]
[327700400,1716327036970,-759.01,0.0003041,6]
[327700401,1716327036980,-500.0,0.0003041,6]
[327700402,1716327036989,-500.0,0.0003041,6]
[327700403,1716327037000,-3505.42,0.0003041,6]
[327700404,1716327037010,-500.0,0.0003041,6]
[327700405,1716327037019,-500.0,0.0003041,6]
[327700406,1716327037029,-500.0,0.0003041,6]
[327700407,1716327037039,-500.0,0.0003041,6]
[327700408,1716327037049,-16030.5,0.0003041,6]
[327700409,1716327037058,-317.68126989,0.0003041,6]
[327700410,1716327037068,-500.0,0.0003041,6]
[327700411,1716327037078,-515.82,0.0003041,6]
[327700412,1716327037087,-1662.15,0.0003041,6]
[327700413,1716327037097,-500.0,0.0003041,6]
[327700414,1716327037106,-622.34,0.0003041,6]
[327700415,1716327037115,-647.67,0.0003041,6]
[327700416,1716327037125,-1728.42,0.0003041,6]
[327700417,1716327037135,-500.0,0.0003041,6]
[327700418,1716327037144,-1018.3,0.0003041,6]
[327700419,1716327037154,-500.0,0.0003041,6]
[327700420,1716327037164,-500.0,0.0003041,6]
[327700421,1716327037173,-500.0,0.0003041,6]
[327700422,1716327037185,-630.94,0.0003041,6]
[327700423,1716327037194,-500.0,0.0003041,6]
[327700424,1716327037203,-4277.76,0.0003041,6]
[327700425,1716327037213,-198.38091122,0.0003041,6]
[327700432,1716327038473,-301.61908878,0.0003041,6]
[327700433,1716327038482,-306.74534808,0.0003041,6]
[327700434,1716327038494,-637.23465192,0.0003041,6]
[327700435,1716327038503,-500.0,0.0003041,6]
[327700436,1716327038512,-500.0,0.0003041,6]
[327700437,1716327038521,-500.0,0.0003041,6]
[327700438,1716327038530,-500.0,0.0003041,6]
[327700439,1716327038540,-500.0,0.0003041,6]
[327700440,1716327038549,-1621.54,0.0003041,6]
[327700441,1716327038558,-203.74586162,0.0003041,6]
[327700442,1716327038575,-296.25413838,0.0003041,6]
[327700443,1716327038584,-1691.69,0.0003041,6]
[327700444,1716327038593,-500.0,0.0003041,6]
[327700445,1716327038603,-500.0,0.0003041,6]
[327700446,1716327038612,-500.0,0.0003041,6]
[327700447,1716327038622,-500.0,0.0003041,6]
[327700448,1716327038631,-500.0,0.0003041,6]
[327700449,1716327038640,-500.0,0.0003041,6]
[327700450,1716327038651,-555.88,0.0003041,6]
[327700451,1716327038661,-665.86,0.0003041,6]
[327700452,1716327038670,-500.0,0.0003041,6]
[327700453,1716327038681,-500.0,0.0003041,6]
[327700454,1716327038690,-500.0,0.0003041,6]
[327700455,1716327038699,-295.90758806,0.0003041,6]
[327700456,1716327038709,-500.0,0.0003041,6]
[327700457,1716327038719,-500.0,0.0003041,6]
[327700458,1716327038729,-500.0,0.0003041,6]
[327700459,1716327038738,-1025.22,0.0003041,6]
[327700460,1716327038748,-500.0,0.0003041,6]
[327700461,1716327038758,-500.0,0.0003041,6]
[327700462,1716327038767,-1494.71,0.0003041,6]
[327700463,1716327038778,-157.052206,0.00030448,30]
[327700464,1716327038788,-157.052206,0.00030548,30]
[327700465,1716327038798,-539.4358,0.00030584,2]
[327700466,1716327038808,-150.06178627,0.00030596,7]
[327700467,1716327038818,-2363.82,0.0003062,2]
[327700468,1716327038827,-157.052206,0.00030648,30]
[327700470,1716327038838,-10.18470396,0.00030684,4]
[327700472,1716327038849,-162.57952603,0.00030684,10]
[327700474,1716327038859,-16165.43363979,0.00030684,4]
[327700475,1716327038869,-289.49063762,0.00030684,4]
[327700476,1716327038878,-409.57557879,0.00030684,4]
[327700477,1716327038889,-831.08327436,0.00030684,60]
[327700479,1716327038900,-500.0,0.00030684,6]
[327700480,1716327038910,-500.0,0.00030684,6]
[327700482,1716327038922,-500.0,0.00030684,6]
[327700483,1716327038933,-500.0,0.00030684,6]
[327700484,1716327038942,-500.0,0.00030684,6]
[327700485,1716327038951,-500.0,0.00030684,6]
[327700486,1716327038960,-500.0,0.00030684,6]
[327700487,1716327038971,-500.0,0.00030684,6]
[327700488,1716327038981,-500.0,0.00030684,6]
[327700489,1716327038990,-500.0,0.00030684,6]
[327700490,1716327038999,-500.0,0.00030684,6]
[327700491,1716327039008,-500.0,0.00030684,6]
[327700492,1716327039018,-500.0,0.00030684,6]
[327700493,1716327039027,-466.18925403,0.00030684,6]
[327700494,1716327039036,-500.0,0.00030684,6]
[327700495,1716327039045,-500.0,0.00030684,6]
[327700496,1716327039055,-500.0,0.00030684,6]
[327700497,1716327039064,-500.0,0.00030684,6]
[327700498,1716327039074,-376.8338432,0.00030684,6]
[327700499,1716327039083,-500.0,0.00030684,6]
[327700500,1716327039092,-500.0,0.00030684,6]
[327700501,1716327039102,-859.67,0.00030684,6]
[327700502,1716327039112,-500.0,0.00030684,6]
[327700503,1716327039121,-500.0,0.00030684,6]
[327700504,1716327039130,-500.0,0.00030684,6]
[327700505,1716327039140,-500.0,0.00030684,6]
[327700506,1716327039150,-500.0,0.00030684,6]
[327700507,1716327039159,-500.0,0.00030684,6]
[327700508,1716327039168,-500.0,0.00030684,6]
[327700509,1716327039179,-500.0,0.00030684,6]
[327700510,1716327039188,-500.0,0.00030684,6]
[327700511,1716327039198,-500.0,0.00030684,6]
[327700512,1716327039207,-639.31,0.00030684,6]
[327700513,1716327039216,-500.0,0.00030684,6]
[327700514,1716327039226,-500.0,0.00030684,6]
[327700515,1716327039235,-500.0,0.00030684,6]
[327700516,1716327039250,-500.0,0.00030684,6]
[327700517,1716327039259,-500.0,0.00030684,6]
[327700518,1716327039268,-500.0,0.00030684,6]
[327700519,1716327039277,-500.0,0.00030684,6]
[327700520,1716327039288,-500.0,0.00030684,6]
[327700521,1716327039297,-500.0,0.00030684,6]
[327700522,1716327039306,-500.0,0.00030684,6]
[327700523,1716327039315,-500.0,0.00030684,6]
[327700524,1716327039324,-500.0,0.00030684,6]
[327700525,1716327039336,-500.0,0.00030684,6]
[327700526,1716327039346,-500.0,0.00030684,6]
[327700527,1716327039355,-500.0,0.00030684,6]
[327700528,1716327039365,-500.0,0.00030684,6]
[327700529,1716327039373,-500.0,0.00030684,6]
[327700530,1716327039383,-500.0,0.00030684,6]
[327700531,1716327039392,-500.0,0.00030684,6]
[327700532,1716327039401,-500.0,0.00030684,6]
[327700533,1716327039411,-500.0,0.00030684,6]
[327700534,1716327039421,-500.0,0.00030684,6]
[327700535,1716327039431,-500.0,0.00030684,6]
[327700536,1716327039441,-500.0,0.00030684,6]
[327700537,1716327039451,-500.0,0.00030684,6]
[327700538,1716327039461,-500.0,0.00030684,6]
[327700539,1716327039470,-500.0,0.00030684,6]
[327700540,1716327039481,-500.0,0.00030684,6]
[327700541,1716327039491,-500.0,0.00030684,6]
[327700542,1716327039501,-500.0,0.00030684,6]
[327700543,1716327039510,-500.0,0.00030684,6]
[327700544,1716327039520,-500.0,0.00030684,6]
[327700545,1716327039530,-500.0,0.00030684,6]
[327700546,1716327039539,-500.0,0.00030684,6]
[327700547,1716327039549,-500.0,0.00030684,6]
[327700548,1716327039560,-621.52704777,0.00030684,6]
[327700549,1716327039570,-500.0,0.00030684,6]
[327700550,1716327039580,-500.0,0.00030684,6]
[327700551,1716327039590,-500.0,0.00030684,6]
[327700552,1716327039601,-500.0,0.00030684,6]
[327700553,1716327039611,-508.88,0.00030684,6]
[327700554,1716327039621,-500.0,0.00030684,6]
[327700555,1716327039631,-500.0,0.00030684,6]
[327700556,1716327039641,-500.0,0.00030684,6]
[327700557,1716327039651,-500.0,0.00030684,6]
[327700558,1716327039661,-500.0,0.00030684,6]
[327700559,1716327039671,-500.0,0.00030684,6]
[327700560,1716327039682,-500.0,0.00030684,6]
[327700561,1716327039692,-500.0,0.00030684,6]
[327700562,1716327039702,-500.0,0.00030684,6]
[327700563,1716327039712,-198.73048615,0.00030684,6]
[327700564,1716327039727,-301.26951385,0.00030684,6]
[327700565,1716327039737,-521.74,0.00030684,6]
[327700566,1716327039748,-500.0,0.00030684,6]
[327700567,1716327039758,-500.0,0.00030684,6]
[327700568,1716327039768,-500.0,0.00030684,6]
[327700569,1716327039779,-500.0,0.00030684,6]
[327700570,1716327039790,-500.0,0.00030684,6]
[327700571,1716327039800,-500.0,0.00030684,6]
[327700572,1716327039810,-500.0,0.00030684,6]
[327700573,1716327039820,-500.0,0.00030684,6]
[327700574,1716327039830,-500.0,0.00030684,6]
[327700575,1716327039841,-241.45868298,0.00030684,6]
[327700576,1716327039851,-536.61159155,0.00030684,6]
[327700577,1716327039863,-145.10840845,0.00030684,6]
[327700578,1716327039873,-1609.55,0.00030684,6]
[327700579,1716327039884,-500.0,0.00030684,6]
[327700580,1716327039894,-500.0,0.00030684,6]
[327700581,1716327039904,-455.28654109,0.00030684,6]
[327700582,1716327039916,-44.71345891,0.00030684,6]
[327700583,1716327039927,-500.0,0.00030684,6]
[327700584,1716327039936,-500.0,0.00030684,6]
[327700585,1716327039946,-500.0,0.00030684,6]
[327700586,1716327039956,-500.0,0.00030684,6]
[327700587,1716327039967,-500.0,0.00030684,6]
[327700588,1716327039977,-514.5865411,0.00030684,6]
[327700589,1716327039990,-389.6234589,0.00030684,6]
[327700590,1716327040001,-520.66,0.00030684,6]
[327700591,1716327040011,-500.0,0.00030684,6]
[327700592,1716327040022,-189.48814056,0.00030684,6]
[327700593,1716327040035,-310.51185944,0.00030684,6]
[327700594,1716327040045,-299.71955925,0.00030684,6]
[327700595,1716327040062,-267.23578628,0.00030684,6]
[327700598,1716327040561,-500.0,0.0003041,6]
[327700599,1716327040572,-376.34465447,0.00030684,6]
[327700600,1716327040583,-500.0,0.00030684,6]
[327700601,1716327040592,-500.0,0.00030684,6]
[327700602,1716327040602,-2064.13498907,0.00030684,6]
[327700603,1716327040615,-1229.07501093,0.00030684,6]
[327700604,1716327040624,-2624.01,0.00030684,6]
[327700605,1716327040634,-620.73,0.00030684,6]
[327700606,1716327040644,-11555.67,0.00030684,6]
[327700607,1716327040654,-500.0,0.00030684,6]
[327700608,1716327040664,-1047.52,0.00030684,6]
[327700609,1716327040674,-500.0,0.00030684,6]
[327700610,1716327040687,-500.0,0.00030684,6]
[327700611,1716327040697,-500.0,0.00030684,6]
[327700612,1716327040706,-2138.33,0.00030684,6]
[327700613,1716327040717,-868.83,0.00030684,6]
[327700614,1716327040727,-1094.02,0.00030684,6]
[327700615,1716327040737,-500.0,0.00030684,6]
[327700616,1716327040747,-2054.93,0.00030684,6]
[327700617,1716327040758,-500.0,0.00030684,6]
[327700618,1716327040767,-2394.75,0.00030684,6]
[327700619,1716327040777,-500.0,0.00030684,6]
[327700620,1716327040787,-500.0,0.00030684,6]
[327700621,1716327040798,-751.07,0.00030684,6]
[327700622,1716327040807,-6659.7,0.00030684,6]
[327700623,1716327040819,-902.89,0.00030684,6]
[327700624,1716327040829,-500.0,0.00030684,6]
[327700625,1716327040839,-644.54,0.00030684,6]
[327700626,1716327040850,-500.0,0.00030684,6]
[327700627,1716327040860,-500.0,0.00030684,6]
[327700628,1716327040870,-500.0,0.00030684,6]
[327700629,1716327040880,-500.0,0.00030684,6]
[327700630,1716327040890,-525.72,0.00030684,6]
[327700631,1716327040900,-500.0,0.00030684,6]
[327700632,1716327040910,-470.71,0.00030684,6]
[327700633,1716327040919,-500.0,0.00030684,6]
[327700634,1716327040929,-6145.69,0.00030684,6]
[327700635,1716327040939,-340.60374186,0.00030684,6]
[327700636,1716327040948,-1232.22,0.00030684,6]
[327700637,1716327040958,-730.36,0.00030684,6]
[327700638,1716327040968,-649.99,0.00030684,6]
[327700639,1716327040978,-1034.88,0.00030684,6]
[327700640,1716327040988,-735.26,0.00030684,6]
[327700641,1716327040998,-500.0,0.00030684,6]
[327700642,1716327041008,-500.0,0.00030684,6]
[327700643,1716327041017,-2817.76,0.00030684,6]
[327700644,1716327041027,-614.48,0.00030684,6]
[327700645,1716327041036,-500.0,0.00030684,6]
[327700648,1716327041046,-557.15,0.00030684,6]
[327700651,1716327041055,-902.3,0.00030684,6]
[327700654,1716327041065,-500.0,0.00030684,6]
[327700657,1716327041075,-665.21,0.00030684,6]
[327700659,1716327041084,-500.0,0.00030684,6]
[327700662,1716327041094,-1010.2,0.00030684,6]
[327700665,1716327041104,-500.0,0.00030684,6]
[327700666,1716327041114,-500.0,0.00030684,6]
[327700668,1716327041123,-904.23,0.00030684,6]
[327700670,1716327041134,-748.01,0.00030684,6]
[327700672,1716327041145,-500.0,0.00030684,6]
[327700674,1716327041155,-906.92,0.00030684,6]
[327700675,1716327041165,-1506.06,0.00030684,6]
[327700676,1716327041174,-500.0,0.00030684,6]
[327700677,1716327041185,-500.0,0.00030684,6]
[327700678,1716327041195,-545.03,0.00030684,6]
[327700679,1716327041204,-6304.36,0.00030684,6]
[327700680,1716327041214,-500.0,0.00030684,6]
[327700681,1716327041223,-876.42,0.00030684,6]
[327700682,1716327041232,-723.68,0.00030684,6]
[327700683,1716327041243,-967.85,0.00030684,6]
[327700684,1716327041256,-1859.8,0.00030684,6]
[327700685,1716327041266,-500.0,0.00030684,6]
[327700686,1716327041275,-500.0,0.00030684,6]
[327700687,1716327041286,-500.0,0.00030684,6]
[327700688,1716327041296,-500.22,0.00030684,6]
[327700689,1716327041305,-500.0,0.00030684,6]
[327700690,1716327041315,-500.0,0.00030684,6]
[327700691,1716327041326,-500.0,0.00030684,6]
[327700692,1716327041335,-500.0,0.00030684,6]
[327700693,1716327041345,-720.31,0.00030684,6]
[327700694,1716327041355,-500.0,0.00030684,6]
[327700695,1716327041364,-1081.0,0.00030684,6]
[327700696,1716327041374,-500.0,0.00030684,6]
[327700697,1716327041384,-500.0,0.00030684,6]
[327700698,1716327041394,-1184.78,0.00030684,6]
[327700699,1716327041403,-500.0,0.00030684,6]
[327700700,1716327041413,-987.25,0.00030684,6]
[327700701,1716327041423,-844.48,0.00030684,6]
[327700702,1716327041433,-1374.44,0.00030684,6]
[327700703,1716327041443,-1280.14,0.00030684,6]
[327700704,1716327041453,-500.0,0.00030684,6]
[327700705,1716327041463,-2297.42,0.00030684,6]
[327700706,1716327041473,-759.01,0.00030684,6]
[327700707,1716327041482,-184.95000133,0.00030684,6]
[327700708,1716327041492,-500.0,0.00030684,6]
[327700709,1716327041501,-3505.42,0.00030684,6]
[327700710,1716327041512,-500.0,0.00030684,6]
[327700711,1716327041521,-500.0,0.00030684,6]
[327700712,1716327041531,-500.0,0.00030684,6]
[327700713,1716327041541,-500.0,0.00030684,6]
[327700714,1716327041551,-16030.5,0.00030684,6]
[327700715,1716327041561,-500.0,0.00030684,6]
[327700716,1716327041571,-515.82,0.00030684,6]
[327700717,1716327041580,-1662.15,0.00030684,6]
[327700718,1716327041591,-500.0,0.00030684,6]
[327700719,1716327041601,-622.34,0.00030684,6]
[327700720,1716327041611,-647.67,0.00030684,6]
[327700721,1716327041622,-1728.42,0.00030684,6]
[327700722,1716327041632,-500.0,0.00030684,6]
[327700723,1716327041642,-1018.3,0.00030684,6]
[327700724,1716327041652,-500.0,0.00030684,6]
[327700725,1716327041662,-500.0,0.00030684,6]
[327700726,1716327041672,-500.0,0.00030684,6]
[327700727,1716327041681,-630.94,0.00030684,6]
[327700728,1716327041691,-4277.76,0.00030684,6]
[327700729,1716327041701,-500.0,0.00030684,6]
[327700730,1716327041711,-943.98,0.00030684,6]
[327700731,1716327041721,-500.0,0.00030684,6]
[327700732,1716327041732,-500.0,0.00030684,6]
[327700733,1716327041742,-500.0,0.00030684,6]
[327700734,1716327041752,-500.0,0.00030684,6]
[327700735,1716327041761,-500.0,0.00030684,6]
[327700736,1716327041771,-1621.54,0.00030684,6]
[327700737,1716327041781,-500.0,0.00030684,6]
[327700738,1716327041791,-1691.69,0.00030684,6]
[327700739,1716327041801,-500.0,0.00030684,6]
[327700740,1716327041811,-500.0,0.00030684,6]
[327700741,1716327041821,-263.21842935,0.00030684,6]
[327700742,1716327041832,-442.67594216,0.00030684,6]
[327700743,1716327041842,-500.0,0.00030684,6]
[327700744,1716327041852,-500.0,0.00030684,6]
[327700745,1716327041863,-555.88,0.00030684,6]
[327700746,1716327041872,-665.86,0.00030684,6]
[327700747,1716327041882,-500.0,0.00030684,6]
[327700748,1716327041892,-500.0,0.00030684,6]
[327700749,1716327041902,-500.0,0.00030684,6]
[327700750,1716327041912,-500.0,0.00030684,6]
[327700751,1716327041923,-1025.22,0.00030684,6]
[327700752,1716327041932,-500.0,0.00030684,6]
[327700753,1716327041942,-500.0,0.00030684,6]
[327700754,1716327041951,-1494.71,0.00030684,6]
[327700755,1716327041962,-500.0,0.00030684,6]
[327700756,1716327041972,-157.052206,0.00030748,32]
[327700757,1716327041982,-166.66666666,0.00030755,7]
[327700758,1716327041991,-200.0,0.000308,11]
[327700759,1716327042001,-157.052206,0.00030848,32]
[327700760,1716327042011,-4274.58189906,0.00030858,2]
[327700761,1716327042021,-156.84401569,0.00030858,2]
[327700762,1716327042031,-174.14011094,0.00030858,2]
[327700763,1716327042041,-500.0,0.000309,11]
[327700764,1716327042051,-157.052206,0.00030948,32]
[327700765,1716327042062,-500.0,0.00030958,6]
[327700766,1716327042072,-500.0,0.00030958,6]
[327700767,1716327042082,-495.22102765,0.00030958,6]
[327700768,1716327042091,-500.0,0.00030958,6]
[327700769,1716327042102,-500.0,0.00030958,6]
[327700770,1716327042112,-500.0,0.00030958,6]
[327700771,1716327042123,-500.0,0.00030958,6]
[327700772,1716327042133,-500.0,0.00030958,6]
[327700773,1716327042143,-500.0,0.00030958,6]
[327700774,1716327042152,-500.0,0.00030958,6]
[327700775,1716327042162,-244.36,0.00030958,6]
[327700776,1716327042171,-500.0,0.00030958,6]
[327700777,1716327042182,-500.0,0.00030958,6]
[327700778,1716327042192,-500.0,0.00030958,6]
[327700779,1716327042449,-469.94780593,0.00030958,6]
[327700780,1716327042459,-500.0,0.00030958,6]
[327700781,1716327042469,-500.0,0.00030958,6]
[327700782,1716327042478,-859.67,0.00030958,6]
[327700783,1716327042488,-500.0,0.00030958,6]
[327700784,1716327042497,-500.0,0.00030958,6]
[327700785,1716327042507,-500.0,0.00030958,6]
[327700786,1716327042518,-500.0,0.00030958,6]
[327700787,1716327042528,-500.0,0.00030958,6]
[327700788,1716327042538,-500.0,0.00030958,6]
[327700789,1716327042549,-500.0,0.00030958,6]
[327700790,1716327042559,-500.0,0.00030958,6]
[327700791,1716327042569,-500.0,0.00030958,6]
[327700792,1716327042580,-639.31,0.00030958,6]
[327700793,1716327042589,-500.0,0.00030958,6]
[327700794,1716327042598,-500.0,0.00030958,6]
[327700795,1716327042608,-500.0,0.00030958,6]
[327700796,1716327042618,-500.0,0.00030958,6]
[327700797,1716327042627,-500.0,0.00030958,6]
[327700798,1716327042637,-500.0,0.00030958,6]
[327700799,1716327042646,-500.0,0.00030958,6]
[327700800,1716327042656,-500.0,0.00030958,6]
[327700801,1716327042665,-487.6,0.00030958,6]
[327700802,1716327042675,-606.43,0.00030958,6]
[327700803,1716327042686,-500.0,0.00030958,6]
[327700804,1716327042696,-500.0,0.00030958,6]
[327700805,1716327042705,-271.77231907,0.00030958,6]
[327700806,1716327042715,-500.0,0.00030958,6]
[327700807,1716327042725,-500.0,0.00030958,6]
[327700808,1716327042734,-500.0,0.00030958,6]
[327700809,1716327042743,-500.0,0.00030958,6]
[327700810,1716327042753,-500.0,0.00030958,6]
[327700811,1716327042762,-500.0,0.00030958,6]
[327700812,1716327042772,-500.0,0.00030958,6]
[327700813,1716327042781,-500.0,0.00030958,6]
[327700814,1716327042791,-500.0,0.00030958,6]
[327700815,1716327042801,-500.0,0.00030958,6]
[327700816,1716327042811,-500.0,0.00030958,6]
[327700817,1716327042820,-500.0,0.00030958,6]
[327700818,1716327042830,-500.0,0.00030958,6]
[327700819,1716327042839,-500.0,0.00030958,6]
[327700820,1716327042849,-500.0,0.00030958,6]
[327700821,1716327042859,-500.0,0.00030958,6]
[327700822,1716327042868,-500.0,0.00030958,6]
[327700823,1716327042877,-500.0,0.00030958,6]
[327700824,1716327042886,-500.0,0.00030958,6]
[327700825,1716327042896,-500.0,0.00030958,6]
[327700826,1716327042906,-500.0,0.00030958,6]
[327700827,1716327042916,-500.0,0.00030958,6]
[327700828,1716327042926,-500.0,0.00030958,6]
[327700829,1716327042935,-500.0,0.00030958,6]
[327700830,1716327042945,-500.0,0.00030958,6]
[327700831,1716327042954,-500.0,0.00030958,6]
[327700832,1716327042964,-508.88,0.00030958,6]
[327700833,1716327042974,-500.0,0.00030958,6]
[327700834,1716327042984,-500.0,0.00030958,6]
[327700835,1716327042994,-500.0,0.00030958,6]
[327700836,1716327043004,-500.0,0.00030958,6]
[327700837,1716327043014,-500.0,0.00030958,6]
[327700838,1716327043023,-500.0,0.00030958,6]
[327700839,1716327043032,-500.0,0.00030958,6]
[327700840,1716327043042,-500.0,0.00030958,6]
[327700841,1716327043052,-500.0,0.00030958,6]
[327700842,1716327043061,-500.0,0.00030958,6]
[327700843,1716327043071,-521.74,0.00030958,6]
[327700844,1716327043080,-492.31,0.00030958,6]
[327700845,1716327043090,-536.24225809,0.00030958,6]